bitfinex/quotes_BTCUSD_20250123
["timestamp","ask_amount","ask_price","bid_price","bid_amount"]
[1737615266176,0.64790396,102340.0,102330.0,0.00068554]
[1737615268157,0.45755667,102340.0,102330.0,0.00068554]
[1737615268957,0.50755667,102340.0,102330.0,0.00068554]
[1737615269344,0.45755667,102340.0,102330.0,0.00068554]
[1737615269507,0.98884763,102340.0,102330.0,0.00068554]
[1737615269708,1.01619492,102340.0,102330.0,0.00068554]
[1737615269955,0.96664763,102340.0,102330.0,0.00068554]
[1737615273783,0.9966345,102340.0,102330.0,0.00068554]
[1737615273984,0.43867567,102320.0,102310.0,0.01029946]
[1737615274190,0.60682296,102320.0,102310.0,0.0103497]
[1737615274608,0.88680983,102320.0,102310.0,0.0103497]
[1737615276452,0.96666663,102320.0,102310.0,7e-07]
[1737615276649,0.9966535,102320.0,102310.0,7e-07]
[1737615277207,1.02569638,102320.0,102310.0,7e-07]
[1737615277425,0.02,102280.0,102260.0,0.07565892]
[1737615277600,0.09778,102270.0,102260.0,0.07565892]
[1737615277811,0.09778,102270.0,102260.0,0.08919709]
[1737615278705,0.09782986,102270.0,102260.0,0.08919709]
[1737615279491,0.34782986,102270.0,102260.0,0.08919709]
[1737615280161,0.57502082,102270.0,102260.0,0.01353817]
[1737615280479,0.097789,102260.0,102250.0,0.05972279]
[1737615280724,0.09853147,102260.0,102250.0,0.05972279]
[1737615281439,0.097789,102260.0,102250.0,0.05972279]
[1737615282604,0.347789,102260.0,102250.0,0.05972279]
[1737615286171,0.347789,102260.0,102250.0,0.00992279]
[1737615286336,0.75267996,102260.0,102250.0,0.00992279]
[1737615286515,0.92567996,102260.0,102250.0,0.00992279]
[1737615286723,0.95536912,102260.0,102250.0,0.00992279]
[1737615286901,0.90536912,102260.0,102250.0,0.00992279]
[1737615287294,0.88536912,102260.0,102250.0,0.00992279]
[1737615287503,0.914412,102260.0,102250.0,0.00992279]
[1737615287718,0.914412,102260.0,102250.0,0.01420781]
[1737615288339,0.914412,102260.0,102250.0,0.00992279]
[1737615288567,1.02425567,102260.0,102250.0,0.00992279]
[1737615288771,1.02425567,102260.0,102250.0,0.01424245]
[1737615288979,0.99521279,102260.0,102250.0,0.01424245]
[1737615289192,1.02421567,102260.0,102250.0,0.00992279]
[1737615289417,1.02421567,102260.0,102250.0,0.01420086]
[1737615289619,0.99547225,102260.0,102250.0,0.01420086]
[1737615289836,1.02451513,102260.0,102250.0,0.01420086]
[1737615290092,0.99547225,102260.0,102250.0,0.01420086]
[1737615290308,1.02451513,102260.0,102250.0,0.00992279]
[1737615290523,0.99547225,102260.0,102250.0,0.00992279]
[1737615291464,0.88562858,102260.0,102250.0,0.00992279]
[1737615291699,0.99547225,102260.0,102250.0,0.00992279]
[1737615291933,0.88562858,102260.0,102250.0,0.00992279]
[1737615292172,0.99547225,102260.0,102250.0,0.01420351]
[1737615292450,0.88562858,102260.0,102250.0,0.01420351]
[1737615293173,0.88830775,102260.0,102250.0,0.01420351]
[1737615295858,0.85593942,102260.0,102250.0,0.01420351]
[1737615296645,0.593499,102250.0,102240.0,0.0001425]
[1737615296900,0.81660196,102250.0,102240.0,5e-07]
[1737615298327,0.81640196,102250.0,102240.0,5e-07]
[1737615298566,1.06640196,102250.0,102240.0,5e-07]
[1737615299818,1.91470196,102250.0,102240.0,5e-07]
[1737615300595,1.83233363,102250.0,102240.0,5e-07]
[1737615300797,1.88233363,102250.0,102240.0,5e-07]
[1737615301203,1.83233363,102250.0,102240.0,5e-07]
[1737615301400,1.86955909,102250.0,102240.0,5e-07]
[1737615302253,0.05,102220.0,102210.0,0.67033075]
[1737615302477,0.05,102220.0,102140.0,0.0001426]
[1737615302478,0.097885,102160.0,102150.0,0.0469]
[1737615302683,0.097895,102150.0,102140.0,0.0001426]
[1737615302904,0.09863747,102150.0,102140.0,0.0001426]
[1737615303103,0.41598476,102150.0,102140.0,0.0001426]
[1737615303310,0.097895,102150.0,102140.0,0.0001426]
[1737615303518,0.097895,102150.0,102140.0,0.17514948]
[1737615304117,0.45773567,102160.0,102140.0,0.27305348]
[1737615304323,0.25,102160.0,102150.0,0.144795]
[1737615306380,0.25,102160.0,102150.0,0.24312114]
[1737615306587,0.25,102170.0,102160.0,0.097885]
[1737615306785,0.25,102170.0,102160.0,0.27123229]
[1737615307718,0.25,102180.0,102170.0,0.097876]
[1737615307869,0.25,102180.0,102170.0,0.19522329]
[1737615311172,0.25,102180.0,102170.0,0.5811456]
[1737615311173,0.20354402,102180.0,102170.0,0.5811456]
[1737615311356,0.20354402,102180.0,102170.0,0.58016696]
[1737615311655,0.25,102190.0,102180.0,0.097866]
[1737615311857,0.25,102190.0,102180.0,0.19521329]
[1737615312666,0.25,102200.0,102190.0,0.097856]
[1737615312808,0.25,102200.0,102190.0,0.09835888]
[1737615314599,0.25,102200.0,102190.0,0.58064984]
[1737615314801,0.25,102220.0,102210.0,0.097837]
[1737615317492,0.25,102220.0,102210.0,0.19616256]
[1737615317696,0.25,102220.0,102210.0,0.27216256]
[1737615317920,0.25,102220.0,102210.0,0.27118429]
[1737615318526,0.25,102220.0,102210.0,0.173837]
[1737615319678,0.347828,102220.0,102210.0,0.076]
[1737615320062,0.347828,102220.0,102200.0,0.293518]
[1737615320268,0.097837,102210.0,102200.0,0.293518]
[1737615320618,0.55551067,102220.0,102200.0,0.293518]
[1737615320619,0.739169,102220.0,102200.0,0.293518]
[1737615321576,0.347837,102210.0,102200.0,0.293518]
[1737615321800,0.543515,102210.0,102190.0,0.61486088]
[1737615322008,0.543515,102210.0,102200.0,0.097847]
[1737615322839,0.25,102210.0,102200.0,0.097847]
[1737615324130,0.25,102210.0,102200.0,0.19519429]
[1737615324337,0.25,102210.0,102200.0,0.30601631]
[1737615324486,0.5727,102230.0,102220.0,0.097828]
[1737615325087,0.670518,102230.0,102220.0,0.097828]
[1737615326726,0.347818,102230.0,102220.0,0.097828]
[1737615328021,0.25,102230.0,102220.0,0.097828]
[1737615328225,0.25,102230.0,102220.0,0.27297529]
[1737615328726,0.347809,102240.0,102230.0,0.097818]
[1737615328944,0.397809,102240.0,102220.0,0.56643029]
[1737615329148,0.09856047,102230.0,102220.0,0.371261]
[1737615329666,0.25074247,102230.0,102220.0,0.371261]
[1737615329958,0.25,102230.0,102220.0,0.37141175]
[1737615330165,0.347818,102230.0,102220.0,0.37141175]
[1737615330472,0.347818,102230.0,102220.0,0.37131175]
[1737615330875,0.347818,102230.0,102220.0,0.00015075]
[1737615331076,0.45766167,102230.0,102220.0,0.00015075]
[1737615331320,0.52766167,102230.0,102220.0,0.00015075]
[1737615332448,0.417818,102230.0,102220.0,0.00015075]
[1737615333400,0.367818,102230.0,102220.0,0.00015075]
[1737615333663,0.417818,102230.0,102220.0,0.00015075]
[1737615337384,0.53752962,102230.0,102220.0,0.00015075]
[1737615337980,0.53752962,102230.0,102220.0,0.00029335]
[1737615338191,0.53782908,102230.0,102220.0,0.00029335]
[1737615339152,0.48782908,102230.0,102220.0,0.00029335]
[1737615339491,0.53782908,102230.0,102220.0,0.00029335]
[1737615342434,0.42798541,102230.0,102220.0,0.00029335]
[1737615343313,0.53782908,102230.0,102220.0,0.00029335]
[1737615344948,0.73817637,102230.0,102220.0,0.00029335]
[1737615350088,0.73813637,102230.0,102220.0,0.00029335]
[1737615359983,0.82428813,102230.0,102220.0,0.00029335]
[1737615362233,0.87428813,102230.0,102220.0,0.00029335]
[1737615362438,0.82428813,102230.0,102220.0,0.00029335]
[1737615363669,0.86339813,102230.0,102220.0,0.00029335]
[1737615366979,0.91339813,102230.0,102220.0,0.00029335]
[1737615367129,0.86339813,102230.0,102220.0,0.00029335]
[1737615369379,0.65320717,102230.0,102220.0,0.07659335]
[1737615369595,0.70320717,102230.0,102220.0,0.07659335]
[1737615371778,0.65320717,102230.0,102220.0,0.07659335]
[1737615372181,0.56705541,102230.0,102220.0,0.07659335]
[1737615372372,0.72689908,102230.0,102220.0,0.07659335]
[1737615372567,0.61705541,102230.0,102220.0,0.07659335]
[1737615372894,0.72689908,102230.0,102220.0,0.07659335]
[1737615373305,0.67689908,102230.0,102220.0,0.07659335]
[1737615374085,0.40794541,102230.0,102220.0,0.07659335]
[1737615375447,0.51778908,102230.0,102220.0,0.07659335]
[1737615375819,0.40794541,102230.0,102220.0,0.07659335]
[1737615378595,0.35794541,102230.0,102220.0,0.07659335]
[1737615378818,0.51778908,102230.0,102220.0,0.07659335]
[1737615379552,0.51778908,102230.0,102220.0,0.17442135]
[1737615379786,0.40794541,102230.0,102220.0,0.17442135]
[1737615379960,0.40794541,102230.0,102220.0,0.07659335]
[1737615380603,0.51778908,102230.0,102220.0,0.07659335]
[1737615381192,0.40794541,102230.0,102220.0,0.17442135]
[1737615381622,0.40794541,102230.0,102220.0,0.07659335]
[1737615381837,0.40794541,102230.0,102220.0,0.17442135]
[1737615382906,0.26012741,102230.0,102220.0,0.17442135]
[1737615383124,0.25025946,102230.0,102220.0,0.17442135]
[1737615383366,0.25025946,102230.0,102220.0,0.42809052]
[1737615383588,0.00029946,102230.0,102220.0,0.42711231]
[1737615385640,0.00029946,102230.0,102220.0,0.31726864]
[1737615387178,0.00029946,102230.0,102220.0,0.21992135]
[1737615387179,0.2087036,102230.0,102220.0,0.21992135]
[1737615387455,0.00104193,102230.0,102220.0,0.21992135]
[1737615387657,0.25029946,102230.0,102220.0,0.31726864]
[1737615388481,0.25029946,102230.0,102220.0,0.42711231]
[1737615388652,0.00029946,102230.0,102220.0,0.42711231]
[1737615388786,0.00029946,102230.0,102220.0,0.31726864]
[1737615388991,0.00029946,102230.0,102220.0,0.42711231]
[1737615389205,0.00029946,102230.0,102220.0,0.31726864]
[1737615389405,0.00029946,102230.0,102220.0,0.42711231]
[1737615391812,0.00029946,102230.0,102220.0,0.31726864]
[1737615392090,0.00029946,102230.0,102220.0,0.42711231]
[1737615392951,0.00029946,102230.0,102220.0,0.31726864]
[1737615393152,0.00029946,102230.0,102220.0,0.46726864]
[1737615393957,0.00029946,102230.0,102220.0,0.57711231]
[1737615394357,0.00029946,102230.0,102220.0,0.46726864]
[1737615396394,0.00029946,102230.0,102220.0,0.47699589]
[1737615403927,0.00029946,102230.0,102220.0,0.58683956]
[1737615404732,0.00029946,102230.0,102220.0,0.48451589]
[1737615405016,0.00029946,102230.0,102220.0,0.47699589]
[1737615405185,0.00029946,102230.0,102220.0,0.58683956]
[1737615410885,0.00025946,102230.0,102220.0,0.58683956]
[1737615416570,0.00025946,102230.0,102220.0,0.61732543]
[1737615418196,0.00025946,102230.0,102220.0,0.04050647]
[1737615418405,0.33362113,102230.0,102220.0,0.00029335]
[1737615418609,0.47377746,102230.0,102220.0,0.00029335]
[1737615420382,0.34807746,102230.0,102220.0,0.09812135]
[1737615420615,0.25025946,102230.0,102220.0,0.19546864]
[1737615421008,0.25025946,102230.0,102220.0,0.1964468]
[1737615421424,0.25025946,102230.0,102220.0,0.2756468]
[1737615421570,0.00025946,102230.0,102220.0,0.27466864]
[1737615422476,0.00025946,102230.0,102220.0,0.38451231]
[1737615422688,0.00025946,102230.0,102220.0,0.27466864]
[1737615424592,0.00025946,102230.0,102220.0,0.42466864]
[1737615426439,0.00025946,102230.0,102220.0,0.44434727]
[1737615426650,0.00025946,102230.0,102220.0,0.55419094]
[1737615426859,0.00025946,102230.0,102220.0,0.44434727]
[1737615429029,0.00025946,102230.0,102220.0,0.55419094]
[1737615429444,0.00025946,102230.0,102220.0,0.44434727]
[1737615429641,0.00025946,102230.0,102220.0,0.36514727]
[1737615445571,0.00025946,102230.0,102220.0,0.34546864]
[1737615447824,0.00025946,102230.0,102220.0,0.45531231]
[1737615448030,0.00025946,102230.0,102220.0,0.56140727]
[1737615454175,0.00025946,102230.0,102220.0,0.3759636]
[1737615454378,0.00025946,102230.0,102220.0,0.34546864]
[1737615456599,0.09807746,102230.0,102220.0,0.19546864]
[1737615456775,0.18087746,102230.0,102220.0,0.19546864]
[1737615456936,0.18161993,102230.0,102220.0,0.19546864]
[1737615457570,0.43161993,102230.0,102220.0,0.19546864]
[1737615457746,0.43087746,102230.0,102220.0,0.19546864]
[1737615457968,0.45087746,102230.0,102220.0,0.00029335]
[1737615462601,0.50087746,102230.0,102220.0,0.00029335]
[1737615462772,0.58952113,102230.0,102220.0,0.00029335]
[1737615463172,0.63952113,102230.0,102220.0,0.00029335]
[1737615463372,0.58952113,102230.0,102220.0,0.00029335]
[1737615463778,0.70986842,102230.0,102220.0,0.00029335]
[1737615463939,0.85986842,102230.0,102220.0,0.00029335]
[1737615467680,0.87937326,102230.0,102220.0,0.00029335]
[1737615468110,0.85986842,102230.0,102220.0,0.00029335]
[1737615470228,0.73952113,102230.0,102220.0,0.00029335]
[1737615470484,0.75952113,102230.0,102220.0,0.00029335]
[1737615470920,0.58952113,102230.0,102220.0,0.00029335]
[1737615471131,0.65952113,102230.0,102220.0,0.00029335]
[1737615471363,0.85986842,102230.0,102220.0,0.00029335]
[1737615471829,0.85982842,102230.0,102220.0,0.00029335]
[1737615479023,0.89894042,102230.0,102220.0,0.00029335]
[1737615479424,0.91894042,102230.0,102220.0,0.00029335]
[1737615479624,0.93879781,102230.0,102220.0,0.00029335]
[1737615484094,1.26149781,102230.0,102220.0,0.00029335]
[1737615485384,1.37134148,102230.0,102220.0,0.00029335]
[1737615485614,1.31149781,102230.0,102220.0,0.00029335]
[1737615487221,1.42134148,102230.0,102220.0,0.00029335]
[1737615487696,0.20769967,102190.0,102180.0,0.0001427]
[1737615487887,0.20844214,102190.0,102180.0,0.0001427]
[1737615488672,0.45844214,102190.0,102180.0,0.0001427]
[1737615489076,0.91334043,102190.0,102180.0,0.0001427]
[1737615490107,0.80349676,102190.0,102180.0,0.0001427]
[1737615490511,0.91334043,102190.0,102180.0,0.0001427]
[1737615490640,0.80349676,102190.0,102180.0,0.0001427]
[1737615491059,0.82326656,102190.0,102180.0,0.0001427]
[1737615491532,0.82301211,102190.0,102180.0,0.0001427]
[1737615491678,0.93285578,102190.0,102180.0,0.0001427]
[1737615491865,0.82301211,102190.0,102180.0,0.0001427]
[1737615492499,0.93285578,102190.0,102180.0,0.0001427]
[1737615493118,0.94261319,102190.0,102180.0,0.0001427]
[1737615493359,0.83276952,102190.0,102180.0,0.0001427]
[1737615493973,0.94261319,102190.0,102180.0,0.0001427]
[1737615494325,0.83276952,102190.0,102180.0,0.0001427]
[1737615495579,0.173,102180.0,102170.0,0.08134927]
[1737615495779,0.49129581,102180.0,102170.0,0.08134927]
[1737615495986,0.49055334,102180.0,102170.0,0.08134927]
[1737615496580,0.74055334,102180.0,102170.0,0.08134927]
[1737615497200,0.367866,102180.0,102170.0,0.0772]
[1737615497677,0.47770967,102180.0,102170.0,0.0772]
[1737615497901,0.117885,102160.0,102150.0,0.13790436]
[1737615498156,0.22847114,102160.0,102150.0,0.1226]
[1737615498351,0.22772867,102160.0,102150.0,0.1226]
[1737615499283,0.147895,102150.0,102140.0,0.0001426]
[1737615499487,0.147895,102150.0,102140.0,0.0773426]
[1737615499993,0.147895,102150.0,102140.0,0.0723426]
[1737615500126,0.25848114,102150.0,102140.0,0.0723426]
[1737615500315,0.147895,102150.0,102140.0,0.0723426]
[1737615500529,0.14863747,102150.0,102140.0,0.07284548]
[1737615500749,0.147895,102150.0,102140.0,0.07284548]
[1737615501226,0.147895,102150.0,102140.0,0.11894548]
[1737615501635,0.097895,102150.0,102140.0,0.21629277]
[1737615501931,0.147895,102150.0,102140.0,0.21629277]
[1737615502501,0.397895,102150.0,102140.0,0.21629277]
[1737615509617,0.25,102150.0,102140.0,0.42404044]
[1737615510629,0.739399,102170.0,102150.0,0.535557]
[1737615510793,0.543637,102170.0,102160.0,0.0751]
[1737615511267,0.70348067,102170.0,102160.0,0.0751]
[1737615511476,0.593637,102170.0,102160.0,0.0751]
[1737615516148,0.593637,102170.0,102160.0,0.172985]
[1737615516329,0.543637,102170.0,102160.0,0.172985]
[1737615516580,0.293637,102170.0,102160.0,0.0751]
[1737615517406,0.293637,102170.0,102160.0,0.172985]
[1737615517626,0.097883,102170.0,102160.0,0.172985]
[1737615517787,0.83116882,102180.0,102160.0,0.46609629]
[1737615517788,0.809356,102180.0,102160.0,0.46609629]
[1737615518102,0.097876,102170.0,102160.0,0.46609629]
[1737615519268,0.117876,102170.0,102160.0,0.0751]
[1737615519487,0.097885,102160.0,102150.0,0.226993]
[1737615519700,0.097885,102160.0,102150.0,0.32434029]
[1737615520753,0.711533,102170.0,102150.0,0.32434029]
[1737615520956,0.543648,102170.0,102160.0,0.19523229]
[1737615521172,0.543648,102170.0,102160.0,0.27823229]
[1737615521579,0.293648,102170.0,102160.0,0.27823229]
[1737615521963,0.097883,102170.0,102160.0,0.27823229]
[1737615522833,0.147883,102170.0,102160.0,0.27823229]
[1737615523466,0.147883,102170.0,102160.0,0.09734729]
[1737615523644,0.50772667,102170.0,102160.0,0.09734729]
[1737615523878,0.097885,102160.0,102150.0,0.226987]
[1737615524081,0.097885,102160.0,102150.0,0.1291]
[1737615524701,0.097885,102160.0,102150.0,0.083]
[1737615524901,0.097885,102160.0,102150.0,0.180895]
[1737615525054,0.09862747,102160.0,102150.0,0.180895]
[1737615525261,0.90759746,102170.0,102150.0,0.376679]
[1737615525576,0.25,102160.0,102150.0,0.47402629]
[1737615529157,0.347885,102160.0,102150.0,0.47402629]
[1737615529778,0.25,102160.0,102150.0,0.47402629]
[1737615532567,0.24996,102160.0,102150.0,0.47402629]
[1737615535581,0.80970946,102170.0,102150.0,0.47402629]
[1737615535786,0.80970946,102170.0,102150.0,0.66980729]
[1737615537312,0.00029946,102160.0,102150.0,0.48651967]
[1737615537505,0.00029946,102160.0,102150.0,0.63196696]
[1737615538991,0.00029946,102160.0,102150.0,0.78196696]
[1737615541543,0.00029946,102160.0,102150.0,0.81248417]
[1737615541960,0.00029946,102160.0,102150.0,0.78196696]
[1737615542614,0.00029946,102160.0,102150.0,0.81248491]
[1737615542976,0.00029946,102160.0,102150.0,0.83548491]
[1737615543193,0.00029946,102170.0,102160.0,0.228985]
[1737615543399,0.00029946,102170.0,102160.0,0.43617596]
[1737615543593,0.00029946,102170.0,102160.0,0.46669391]
[1737615545665,0.00029946,102170.0,102160.0,0.43617596]
[1737615547162,0.00029946,102170.0,102160.0,0.45917596]
[1737615552416,0.00029946,102170.0,102160.0,0.46669596]
[1737615553363,0.00029946,102170.0,102160.0,0.32633229]
[1737615553583,0.00029946,102170.0,102160.0,0.47633229]
[1737615555601,0.00029946,102170.0,102160.0,0.4859034]
[1737615561752,0.00029946,102170.0,102160.0,0.486046]
[1737615562704,0.00029946,102170.0,102160.0,0.5963717]
[1737615562913,0.00029946,102170.0,102160.0,0.486046]
[1737615564558,0.00029946,102170.0,102160.0,0.107061]
[1737615564757,0.33560116,102170.0,102160.0,0.09748989]
[1737615564903,0.22527546,102170.0,102160.0,0.09748989]
[1737615565103,0.33560116,102170.0,102160.0,0.09748989]
[1737615565323,0.22527546,102170.0,102160.0,0.09748989]
[1737615565539,0.47527546,102170.0,102160.0,0.09748989]
[1737615570143,0.52527546,102170.0,102160.0,0.09748989]
[1737615570776,0.37739946,102170.0,102160.0,0.19537489]
[1737615570981,0.33219946,102170.0,102160.0,0.19635368]
[1737615571111,0.25029946,102170.0,102160.0,0.19635368]
[1737615571524,0.00029946,102170.0,102160.0,0.19537489]
[1737615574993,0.09817546,102170.0,102160.0,0.19537489]
[1737615579433,0.00029946,102170.0,102160.0,0.19537489]
[1737615579637,0.00029946,102170.0,102160.0,0.60417933]
[1737615579843,0.00029946,102170.0,102160.0,0.60320059]
[1737615580058,0.00029946,102170.0,102160.0,0.34537489]
[1737615580264,0.17607546,102170.0,102160.0,0.34537489]
[1737615580674,0.42607546,102170.0,102160.0,0.19537489]
[1737615580833,0.32819946,102170.0,102160.0,0.19537489]
[1737615589878,0.32819946,102170.0,102160.0,0.26876118]
[1737615590099,0.25029946,102170.0,102160.0,0.19537489]
[1737615596838,0.25029946,102170.0,102160.0,0.20508034]
[1737615598624,0.25025946,102170.0,102160.0,0.20508034]
[1737615600660,0.34813546,102170.0,102160.0,0.09748989]
[1737615600864,0.44054301,102170.0,102160.0,0.0001426]
[1737615601104,0.52094301,102170.0,102160.0,0.0001426]
[1737615601326,0.44853546,102170.0,102160.0,0.0001426]
[1737615602260,0.44853546,102170.0,102160.0,0.0980276]
[1737615603420,0.25025946,102170.0,102160.0,0.34018999]
[1737615603664,0.25025946,102170.0,102160.0,0.26778244]
[1737615603908,0.25025946,102170.0,102160.0,0.29832535]
[1737615604393,0.25025946,102170.0,102160.0,0.26778244]
[1737615605901,0.25025946,102170.0,102160.0,0.30567911]
[1737615606502,0.2497329,102170.0,102160.0,0.60537911]
[1737615606725,0.00029925,102190.0,102180.0,0.177366]
[1737615607030,0.00029925,102190.0,102180.0,0.38501751]
[1737615607093,0.00029925,102190.0,102180.0,0.40801751]
[1737615607522,0.00021033,102190.0,102180.0,0.40801751]
[1737615607859,0.00021033,102190.0,102180.0,0.40852039]
[1737615608665,0.00021033,102190.0,102180.0,0.66882461]
[1737615609316,0.00021033,102190.0,102180.0,0.55852039]
[1737615609972,0.00021033,102190.0,102180.0,0.71602461]
[1737615611658,0.00021033,102190.0,102180.0,0.60572039]
[1737615612661,0.00021033,102190.0,102180.0,0.61567245]
[1737615613682,0.00021033,102190.0,102180.0,0.50536823]
[1737615617896,0.09806633,102190.0,102180.0,0.25780223]
[1737615618586,0.00021033,102190.0,102180.0,0.35566823]
[1737615619198,0.00021033,102190.0,102180.0,0.34571617]
[1737615620474,0.09806633,102190.0,102180.0,0.09785017]
[1737615623931,0.09806633,102190.0,102180.0,0.00050288]
[1737615623932,0.34061302,102190.0,102180.0,0.00050288]
[1737615624148,0.45017477,102190.0,102180.0,0.00050288]
[1737615624557,0.58987055,102190.0,102180.0,0.00050288]
[1737615626615,0.63987055,102190.0,102180.0,0.00050288]
[1737615627561,0.58987055,102190.0,102180.0,0.00050288]
[1737615629932,0.58987055,102190.0,102180.0,0.00064528]
[1737615633083,0.63987055,102190.0,102180.0,0.00064528]
[1737615633289,0.58987055,102190.0,102180.0,0.00064528]
[1737615633761,0.59952927,102190.0,102180.0,0.00064528]
[1737615635170,0.58987055,102190.0,102180.0,0.00064528]
[1737615636896,1.02052206,102190.0,102180.0,0.00064528]
[1737615639316,1.02052206,102190.0,102180.0,2.8e-07]
[1737615639540,0.97052206,102190.0,102180.0,2.8e-07]
[1737615640224,1.05667382,102190.0,102180.0,2.8e-07]
[1737615643490,0.97800206,102190.0,102180.0,2.8e-07]
[1737615644940,1.07534935,102190.0,102180.0,2.8e-07]
[1737615645174,0.97800206,102190.0,102180.0,2.8e-07]
[1737615649996,1.06454027,102190.0,102180.0,2.8e-07]
[1737615652842,0.07,102170.0,102160.0,0.0001426]
[1737615653118,0.6143742,102170.0,102160.0,0.00029346]
[1737615653332,0.61363173,102170.0,102160.0,0.00029346]
[1737615653587,0.38152751,102170.0,102160.0,0.00029346]
[1737615653819,0.20818022,102170.0,102160.0,0.00029346]
[1737615654031,0.35818022,102170.0,102160.0,0.00029346]
[1737615654246,0.58032751,102170.0,102160.0,0.00029346]
[1737615654625,0.83032751,102170.0,102160.0,0.00029346]
[1737615655780,0.8400005,102170.0,102160.0,0.00029346]
[1737615657082,0.7912005,102170.0,102160.0,0.00029346]
[1737615657598,0.7152005,102170.0,102160.0,0.00029346]
[1737615658568,0.61785321,102170.0,102160.0,0.00029346]
[1737615659442,0.7152005,102170.0,102160.0,0.00029346]
[1737615659658,0.8399605,102170.0,102160.0,0.00029346]
[1737615660610,0.7911605,102170.0,102160.0,0.00029346]
[1737615660820,0.7151605,102170.0,102160.0,0.00029346]
[1737615661919,0.61781321,102170.0,102160.0,0.00029346]
[1737615668426,0.61781321,102170.0,102160.0,0.04759346]
[1737615669844,0.50750899,102170.0,102160.0,0.04759346]
[1737615670058,0.367836,102170.0,102160.0,0.22837846]
[1737615670687,0.25,102170.0,102160.0,0.32572575]
[1737615671542,0.0246,102180.0,102170.0,0.1286]
[1737615671770,0.0246,102180.0,102170.0,0.226476]
[1737615672686,0.2746,102180.0,102170.0,0.226476]
[1737615672859,0.2546,102180.0,102170.0,0.226476]
[1737615673642,0.0046,102180.0,102170.0,0.226476]
[1737615675075,0.0246,102180.0,102170.0,0.32382329]
[1737615675215,0.02489925,102180.0,102170.0,0.32382329]
[1737615675648,0.00489925,102180.0,102170.0,0.32382329]
[1737615679752,0.05489925,102180.0,102170.0,0.32382329]
[1737615682800,0.00489925,102180.0,102170.0,0.32382329]
[1737615686232,0.15276525,102180.0,102170.0,0.32382329]
[1737615686441,0.05489925,102180.0,102170.0,0.32382329]
[1737615687049,0.00489925,102180.0,102170.0,0.32382329]
[1737615687285,0.05489925,102180.0,102170.0,0.32396579]
[1737615689051,0.05489925,102180.0,102170.0,0.22608979]
[1737615689052,0.12276525,102180.0,102170.0,0.22608979]
[1737615689251,0.17350772,102180.0,102170.0,0.22608979]
[1737615692489,0.17276525,102180.0,102170.0,0.22608979]
[1737615692698,0.17350772,102180.0,102170.0,0.22608979]
[1737615693128,0.12350772,102180.0,102170.0,0.22608979]
[1737615693545,0.17350772,102180.0,102170.0,0.22608979]
[1737615694457,0.21381194,102180.0,102170.0,0.0001425]
[1737615694680,0.53991194,102180.0,102170.0,0.0001425]
[1737615694912,0.53916947,102180.0,102170.0,0.0001425]
[1737615695382,0.78651676,102180.0,102170.0,0.0001425]
[1737615695608,0.89682098,102180.0,102170.0,0.0001425]
[1737615696088,0.83421676,102180.0,102170.0,0.0001425]
[1737615696575,0.94452098,102180.0,102170.0,0.0001425]
[1737615696817,0.83421676,102180.0,102170.0,0.0001425]
[1737615697802,0.85336315,102180.0,102170.0,0.0001425]
[1737615698234,0.86308294,102180.0,102170.0,0.0001425]
[1737615699140,0.97338716,102180.0,102170.0,0.0001425]
[1737615699892,0.86308294,102180.0,102170.0,0.0001425]
[1737615700106,0.97338716,102180.0,102170.0,0.0001425]
[1737615700816,0.86308294,102180.0,102170.0,0.0001425]
[1737615703940,0.85882656,102180.0,102170.0,0.0001425]
[1737615710230,0.85164592,102180.0,102170.0,0.0001425]
[1737615711156,0.85194496,102180.0,102170.0,0.0001425]
[1737615711856,0.35134706,102180.0,102170.0,0.0001425]
[1737615714814,0.34162727,102180.0,102170.0,0.0001425]
[1737615714972,0.36162727,102180.0,102170.0,0.0821425]
[1737615715381,0.47193149,102180.0,102170.0,0.0821425]
[1737615718032,0.36162727,102180.0,102170.0,0.0821425]
[1737615718233,0.47193149,102180.0,102170.0,0.0821425]
[1737615719070,0.36162727,102180.0,102170.0,0.0821425]
[1737615719317,0.47193149,102180.0,102170.0,0.0821425]
[1737615720256,0.36158727,102180.0,102170.0,0.0821425]
[1737615722466,0.41158727,102180.0,102170.0,0.1800185]
[1737615722674,0.11158727,102180.0,102170.0,0.27736579]
[1737615723503,0.02029904,102180.0,102170.0,0.27736579]
[1737615726293,0.02104151,102180.0,102170.0,0.27736579]
[1737615726506,0.32104151,102180.0,102170.0,0.27736579]
[1737615726730,0.32029904,102180.0,102170.0,0.27736579]
[1737615727177,0.52846926,102180.0,102170.0,0.0821425]
[1737615727419,0.45846926,102180.0,102170.0,0.0001425]
[1737615729118,0.50846926,102180.0,102170.0,0.0001425]
[1737615729328,0.45846926,102180.0,102170.0,0.0001425]
[1737615733289,0.34816504,102180.0,102170.0,0.0001425]
[1737615735975,0.36816504,102180.0,102170.0,0.0001425]
[1737615736367,0.34816504,102180.0,102170.0,0.0001425]
[1737615737826,0.45846926,102180.0,102170.0,0.0001425]
[1737615740253,0.60846926,102180.0,102170.0,0.0001425]
[1737615740458,0.73906926,102180.0,102170.0,0.0001425]
[1737615745339,0.93591169,102180.0,102170.0,0.0001425]
[1737615745746,0.82560747,102180.0,102170.0,0.0001425]
[1737615745961,0.93591169,102180.0,102170.0,0.0001425]
[1737615747140,0.82560747,102180.0,102170.0,0.0001425]
[1737615747742,0.86016977,102180.0,102170.0,0.0001425]
[1737615748143,0.87974528,102180.0,102170.0,0.0001425]
[1737615750635,1.06952583,102180.0,102170.0,0.0001425]
[1737615750835,0.99709257,102180.0,102170.0,0.0001425]
[1737615751044,1.06952583,102180.0,102170.0,0.0001425]
[1737615751253,0.99709257,102180.0,102170.0,0.0001425]
[1737615751549,1.03622257,102180.0,102170.0,0.0001425]
[1737615754132,0.76869977,102180.0,102170.0,0.0001425]
[1737615754338,0.65713651,102180.0,102170.0,0.0001425]
[1737615755786,0.58470325,102180.0,102170.0,0.0001425]
[1737615758582,0.69504888,102180.0,102170.0,0.0001425]
[1737615759200,0.43470325,102180.0,102170.0,0.0811425]
[1737615759607,0.45851067,102180.0,102170.0,0.0811425]
[1737615763047,0.50851067,102180.0,102170.0,0.0811425]
[1737615763257,0.45851067,102180.0,102170.0,0.0811425]
[1737615765061,0.47808067,102180.0,102170.0,0.0811425]
[1737615765271,0.45851067,102180.0,102170.0,0.0811425]
[1737615767149,0.50851067,102180.0,102170.0,0.0811425]
[1737615767317,0.45851067,102180.0,102170.0,0.0811425]
[1737615768343,0.45851067,102180.0,102170.0,0.0001425]
[1737615770576,0.78650359,102180.0,102170.0,0.0001425]
[1737615770776,0.93650359,102180.0,102170.0,0.0001425]
[1737615771619,0.93650359,102180.0,102160.0,0.00015146]
[1737615771620,0.147876,102170.0,102160.0,0.00015146]
[1737615771877,0.43131139,102170.0,102160.0,0.00015146]